fUSD/lending_fUSD_20250929
["ID","MTS","AMOUNT","RATE_DAILY","PERIOD"]
[388391371,1759151441549,-151.0,0.0001792,2]
[388391373,1759151441559,-151.0,0.0001792,2]
[388391375,1759151441570,-151.0,0.0001792,2]
[388391377,1759151441581,-151.0,0.0001792,2]
[388391379,1759151441591,-151.0,0.0001792,2]
[388391381,1759151441602,-151.0,0.0001792,2]
[388391383,1759151441612,-151.0,0.0001792,2]
[388391385,1759151441622,-151.0,0.0001792,2]
[388391387,1759151441632,-151.0,0.0001792,2]
[388391389,1759151441643,-151.0,0.0001792,2]
[388391391,1759151441652,-151.0,0.0001792,2]
[388391393,1759151441663,-151.0,0.0001792,2]
[388391395,1759151441675,-151.0,0.0001792,2]
[388391398,1759151441685,-151.0,0.0001792,2]
[388391400,1759151441696,-151.0,0.0001792,2]
[388391402,1759151441706,-151.0,0.0001792,2]
[388391404,1759151441716,-151.0,0.0001792,2]
[388391406,1759151441726,-151.0,0.0001792,2]
[388391408,1759151441737,-151.0,0.0001792,2]
[388391410,1759151441746,-151.0,0.0001792,2]
[388391412,1759151441756,-151.0,0.0001792,2]
[388391414,1759151441766,-151.0,0.0001792,2]
[388391416,1759151441775,-151.0,0.0001792,2]
[388391418,1759151441785,-151.0,0.0001792,2]
[388391420,1759151441796,-151.0,0.0001792,2]
[388391422,1759151441807,-151.0,0.0001792,2]
[388391425,1759151441816,-151.0,0.0001792,2]
[388391427,1759151441826,-151.0,0.0001792,2]
[388391429,1759151441836,-156.94611494,0.0001792,2]
[388391431,1759151441848,-150.0,0.00018,2]
[388391433,1759151441858,-150.0,0.00018,2]
[388391435,1759151441869,-150.0,0.00018,2]
[388391437,1759151441879,-150.0,0.00018,2]
[388391439,1759151441889,-150.0,0.00018,2]
[388391441,1759151441899,-150.0,0.00018,2]
[388391443,1759151441909,-150.0,0.00018,2]
[388391445,1759151441919,-150.0,0.00018,2]
[388391447,1759151441930,-150.0,0.00018,2]
[388391449,1759151441939,-150.0,0.00018,2]
[388391451,1759151441950,-150.0,0.00018,2]
[388391453,1759151441959,-150.0,0.00018,2]
[388391455,1759151441969,-500.0,0.00018028,2]
[388391457,1759151441980,-420.0,0.0001803,2]
[388391460,1759151441990,-500.0,0.0001807,2]
[388391462,1759151442002,-2752.4,0.00018183,2]
[388391464,1759151442014,-1000.0,0.000182,2]
[388391466,1759151442024,-151.0,0.00018228,2]
[388391468,1759151442034,-151.0,0.00018228,2]
[388391470,1759151442043,-474.44399431,0.00018283,2]
[388391472,1759151442054,-443.78,0.000183,2]
[388391474,1759151442064,-962.50778327,0.000183,2]
[388391477,1759151442080,-160.0,0.000183,2]
[388391479,1759151442091,-500.0,0.00018302,2]
[388391481,1759151442101,-500.0,0.00018344,2]
[388391483,1759151442112,-576.89,0.00018356,2]
[388391485,1759151442123,-1000.0,0.000184,2]
[388391488,1759151442136,-165.80758188,0.00018401,2]
[388391490,1759151442147,-281.0,0.0001847,2]
[388391492,1759151442157,-500.0,0.00018473,2]
[388391494,1759151442167,-500.0,0.00018473,2]
[388391496,1759151442178,-500.0,0.00018473,2]
[388391498,1759151442188,-500.0,0.00018473,2]
[388391500,1759151442199,-500.0,0.00018473,2]
[388391502,1759151442211,-207.23736614,0.00018473,2]
[388391504,1759151442221,-500.0,0.00018473,2]
[388391506,1759151442232,-500.0,0.00018473,2]
[388391508,1759151442242,-500.0,0.00018473,2]
[388391510,1759151442253,-500.0,0.00018473,2]
[388391512,1759151442263,-500.0,0.00018473,2]
[388391514,1759151442274,-161.16816585,0.00018473,2]
[388391516,1759151442284,-529.14518882,0.00018473,2]
[388391519,1759151442294,-500.0,0.00018473,2]
[388391521,1759151442304,-500.0,0.00018473,2]
[388391523,1759151442314,-500.0,0.00018473,2]
[388391525,1759151442324,-500.0,0.00018473,2]
[388391527,1759151442334,-500.0,0.00018473,2]
[388391529,1759151442344,-500.0,0.00018473,2]
[388391531,1759151442355,-500.0,0.00018473,2]
[388391533,1759151442365,-1090.0,0.000185,2]
[388391536,1759151442375,-3732.0376048,0.000185,2]
[388391538,1759151442392,-154342.5038716,0.000185,2]
[388391608,1759151442989,-264.1752996,0.0001792,2]
[388391610,1759151443001,-1657.47962619,0.000185,2]
[388391613,1759151443015,-550.03331089,0.000185,2]
[388391615,1759151443028,-51817.32385858,0.000185,2]
[388391617,1759151443041,-380.78043422,0.000185,2]
[388391621,1759151443063,-402.40199984,0.000185,2]
[388391631,1759151443157,-355.27405806,0.000185,2]
[388391633,1759151443171,-1512.42644318,0.000185,2]
[388391639,1759151443217,-309.8378645,0.000185,2]
[388391925,1759151445943,-268.85112633,0.000185,2]
[388391939,1759151446056,-6314.26903983,0.000185,2]
[388391941,1759151446069,-8010.4793428,0.000185,2]
[388391944,1759151446082,-9450.38684683,0.000185,2]
[388391948,1759151446112,-3187.69,0.000185,2]
[388391950,1759151446125,-99887.93918741,0.000185,2]
[388394191,1759151628989,164.05,8.741e-05,2]
[388394192,1759151629227,164.05,0.00011655,2]
[388394193,1759151629875,164.05,0.00014569,2]
[388394202,1759152032639,161.12,0.00025432,120]
[388394214,1759152440693,3979.90758571,0.0001305,2]
[388394235,1759152560917,157.6,7.983e-05,2]
[388394247,1759152632106,-1512.37846894,0.00015,2]
[388394249,1759152632116,-265.2046462,0.00016021,2]
[388394250,1759152632130,-97.6753538,0.00016021,2]
[388394251,1759152632140,-250.0,0.00016103,2]
[388394252,1759152632151,-200.0,0.00016126,2]
[388394253,1759152632161,-1879.52,0.00016255,2]
[388394254,1759152632171,-160.0,0.00016308,2]
[388394255,1759152632182,-1200.0,0.00016313,2]
[388394256,1759152632192,-300.0,0.00016313,2]
[388394257,1759152632202,-1782.5066618,0.00016314,2]
[388394258,1759152632215,-3216.6737621,0.00016314,2]
[388394259,1759152632227,-409.83448956,0.00016314,2]
[388394260,1759152632244,-5635.43508654,0.00016314,2]
[388394261,1759152632254,-200.0,0.00016314,2]
[388394262,1759152632265,-1000.0,0.00016438,2]
[388394263,1759152632275,-250.0,0.00016471,2]
[388394264,1759152632285,-171.83,0.00016804,2]
[388394265,1759152632296,-362.88,0.00016822,2]
[388394266,1759152632306,-165.71,0.00016859,2]
[388394267,1759152632316,-500.0,0.00016899,2]
[388394268,1759152632325,-500.0,0.00016899,2]
[388394269,1759152632336,-500.0,0.00016899,2]
[388394270,1759152632346,-500.0,0.00016899,2]
[388394271,1759152632356,-465.81033539,0.00016899,2]
[388394272,1759152632365,-16942.70525596,0.000169,2]
[388394273,1759152632377,-474.00436962,0.000169,2]
[388394274,1759152632389,-486.87103,0.000169,2]
[388394275,1759152632401,-366.77913344,0.000169,2]
[388394276,1759152632412,-4075.95994171,0.000169,2]
[388394277,1759152632428,-1470.07670614,0.000169,2]
[388394278,1759152632440,-57.40694547,0.000169,2]
[388394279,1759152632449,-700.0,0.00016949,2]
[388394280,1759152632459,-286.67,0.00016952,2]
[388394281,1759152632469,-161.12,0.00016955,2]
[388394282,1759152632479,-196.008007,0.00016973,2]
[388394283,1759152632490,-303.991993,0.00016973,2]
[388394284,1759152632500,-500.0,0.00016973,2]
[388394285,1759152632510,-159.65177655,0.00016973,2]
[388394286,1759152632522,-340.34822345,0.00016973,2]
[388394287,1759152632532,-327.53551321,0.00016973,2]
[388394288,1759152632549,-172.46448679,0.00016973,2]
[388394289,1759152632559,-194.19017566,0.00016992,2]
[388394290,1759152632569,-151.0,0.00016997,2]
[388394291,1759152632579,-515.59268273,0.00016999,2]
[388394292,1759152632589,-176.97102101,0.00016999,2]
[388394293,1759152632600,-2546.83921901,0.00016999,2]
[388394296,1759152632614,-2933.58272139,0.00016999,2]
[388394298,1759152632626,-925.10525915,0.00016999,2]
[388394300,1759152632637,-713.83442561,0.00016999,2]
[388394304,1759152632671,-21012.64081178,0.00016999,2]
[388394305,1759152632682,-300.0,0.00016999,2]
[388394306,1759152632692,-768.96952081,0.00016999,2]
[388394307,1759152632703,-493.8994169,0.00017,2]
[388394308,1759152632715,-26454.96161115,0.00017,2]
[388394318,1759152638015,-2847047.843968,0.00017,2]
[388394319,1759152638077,-487.39284,0.00017,2]
[388394320,1759152638191,-497.42210047,0.00017,2]
[388394321,1759152638251,-472.09048088,0.00017,2]
[388394471,1759152640046,-203361.05955357,0.00017,2]
[388394473,1759152640061,-446.7886114,0.00017,2]
[388394475,1759152640074,-1647.21697078,0.00017,2]
[388394478,1759152640085,-4658.7140501,0.00017,2]
[388394482,1759152640111,-337.96058654,0.00017,2]
[388394484,1759152640123,-407.2427,0.00017,2]
[388394490,1759152640175,-1840.38866789,0.00017,2]
[388394493,1759152640187,-2780.59593106,0.00017,2]
[388394495,1759152640200,-880.0301178,0.00017,2]
[388394500,1759152640236,-1967.95997745,0.00017,2]
[388394502,1759152640248,-847.37560844,0.00017,2]
[388394505,1759152640260,-1091.52236267,0.00017,2]
[388394510,1759152640302,-1000.0,0.00017,2]
[388394512,1759152640314,-1183.75,0.00017,2]
[388394515,1759152640325,-1302.38156078,0.00017,2]
[388394517,1759152640337,-269.36548125,0.00017,2]
[388394521,1759152640361,-9526.47575124,0.00017,2]
[388394523,1759152640373,-4611.76540006,0.00017,2]
[388394879,1759152643877,-798.21943,0.00017,2]
[388394881,1759152643892,-322.12437,0.00017,2]
[388394884,1759152643904,-6139.60345878,0.00017,2]
[388394886,1759152643915,-25059.34708095,0.00017,2]
[388394888,1759152643928,-14412.73582692,0.00017,2]
[388394890,1759152643940,-323.80634078,0.00017,2]
[388394893,1759152643952,-678.5391963,0.00017,2]
[388394896,1759152643972,-652.1504,0.00017,2]
[388394898,1759152643984,-2237.35013299,0.00017,2]
[388395129,1759152646209,-608.17,0.00017,2]
[388395132,1759152646235,-1360.9304,0.00017,2]
[388395141,1759152646328,-3813.91009867,0.00017,2]
[388395149,1759152646389,-418.06931013,0.00017,2]
[388395701,1759153832372,-251.6559542,0.00015172,2]
[388395702,1759153832432,-3920.2116508,0.00015172,2]
[388395703,1759153832442,-2000.0,0.00015248,2]
[388395704,1759153832452,-2751.0,0.0001527,2]
[388395705,1759153832462,-500.0,0.00015285,2]
[388395706,1759153832472,-300.0,0.00015287,2]
[388395707,1759153832482,-1200.0,0.00015287,2]
[388395708,1759153832492,-150.0,0.00015288,2]
[388395709,1759153832502,-150.0,0.00015288,2]
[388395710,1759153832516,-150.0,0.00015288,2]
[388395711,1759153832526,-150.0,0.00015288,2]
[388395712,1759153832536,-150.0,0.00015288,2]
[388395713,1759153832546,-150.0,0.00015288,2]
[388395714,1759153832557,-150.0,0.00015288,2]
[388395715,1759153832566,-150.0,0.00015288,2]
[388395716,1759153832575,-150.0,0.00015288,2]
[388395717,1759153832585,-150.0,0.00015288,2]
[388395718,1759153832596,-150.0,0.00015288,2]
[388395719,1759153832611,-150.0,0.00015288,2]
[388395720,1759153832621,-150.0,0.00015288,2]
[388395721,1759153832635,-150.0,0.00015288,2]
[388395722,1759153832645,-2000.0,0.00015291,2]
[388395723,1759153832655,-505.55115635,0.00015291,2]
[388395724,1759153832664,-1702.3,0.00015332,2]
[388395725,1759153832673,-250.0,0.00015339,2]
[388395726,1759153832683,-253.66,0.00015358,2]
[388395727,1759153832693,-298.64,0.00015412,2]
[388395728,1759153832703,-243.28,0.00015441,2]
[388395729,1759153832713,-150.0,0.00015458,2]
[388395730,1759153832722,-150.0,0.0001553,2]
[388395731,1759153832731,-150.0,0.00015571,2]
[388395732,1759153832741,-150.0,0.00015571,2]
[388395733,1759153832751,-231.88,0.00015589,2]
[388395734,1759153832762,-150.0,0.00015627,2]
[388395735,1759153832772,-150.0,0.00015627,2]
[388395736,1759153832782,-150.0,0.00015627,2]
[388395737,1759153832792,-150.0,0.00015627,2]
[388395738,1759153832804,-164.3,0.000157,2]
[388395739,1759153832813,-150.0,0.00015712,2]
[388395740,1759153832823,-216.75,0.00015724,2]
[388395741,1759153832833,-150.0,0.00015773,2]
[388395742,1759153832843,-150.0,0.00015797,2]
[388395743,1759153832852,-297.0,0.000158,2]
[388395744,1759153832862,-2493.36,0.00015827,2]
[388395745,1759153832872,-150.0,0.00015854,2]
[388395746,1759153832882,-150.0,0.00015854,2]
[388395747,1759153832891,-80.94558141,0.00015854,2]
[388395749,1759153832904,-69.05441859,0.00015854,2]
[388395751,1759153832913,-1321.88,0.00015881,2]
[388395753,1759153832925,-445.02,0.00015893,2]
[388395755,1759153832935,-236.95114198,0.00015907,2]
[388395757,1759153832945,-500.0,0.00015907,2]
[388395759,1759153832955,-500.0,0.00015907,2]
[388395762,1759153832965,-513.50038838,0.00015907,2]
[388395764,1759153832974,-500.0,0.00015907,2]
[388395766,1759153832986,-7138.41217606,0.00015908,2]
[388395768,1759153832999,-6364.38020629,0.00015908,2]
[388395770,1759153833010,-391.2107439,0.00015908,2]
[388395772,1759153833022,-609.86407223,0.00015908,2]
[388395775,1759153833032,-200.0,0.00015918,2]
[388395777,1759153833042,-557.56,0.0001592,2]
[388395780,1759153833053,-160.83,0.00015924,2]
[388395782,1759153833063,-150.0,0.00015967,2]
[388395784,1759153833073,-150.0,0.00015967,2]
[388395786,1759153833082,-150.0,0.00015967,2]
[388395788,1759153833092,-150.0,0.00015967,2]
[388395790,1759153833101,-475.88916138,0.00015978,2]
[388395792,1759153833113,-756.41083862,0.00015978,2]
[388395794,1759153833123,-150.0,0.00016016,2]
[388395796,1759153833133,-150.0,0.00016064,2]
[388395798,1759153833143,-254.01,0.00016079,2]
[388395800,1759153833152,-200.0,0.00016085,2]
[388395802,1759153833161,-125.3881117,0.00016085,2]
[388395805,1759153833173,-25.6118883,0.00016085,2]
[388395807,1759153833183,-240.85688356,0.00016094,2]
[388395809,1759153833194,-717.25311644,0.00016094,2]
[388395811,1759153833203,-239.37,0.00016117,2]
[388395813,1759153833214,-180.0,0.00016126,2]
[388395815,1759153833223,-150.0,0.00016137,2]
[388395817,1759153833233,-150.0,0.00016137,2]
[388395819,1759153833243,-150.0,0.00016137,2]
[388395821,1759153833254,-150.0,0.00016137,2]
[388395823,1759153833264,-827.91,0.00016172,2]
[388395826,1759153833273,-298.64,0.00016183,2]
[388395828,1759153833283,-150.0,0.00016258,2]
[388395830,1759153833293,-150.0,0.00016307,2]
[388395832,1759153833304,-150.0,0.00016307,2]
[388395834,1759153833314,-150.0,0.00016307,2]
[388395836,1759153833324,-150.0,0.00016307,2]
[388395838,1759153833334,-150.0,0.0001642,2]
[388395840,1759153833343,-150.0,0.0001642,2]
[388395842,1759153833353,-150.0,0.0001642,2]
[388395844,1759153833363,-923.87,0.00016438,2]
[388395846,1759153833373,-20936.81,0.00016438,2]
[388395848,1759153833383,-15659.74180452,0.00016468,2]
[388395851,1759153833408,-150.0,0.00016477,2]
[388395853,1759153833418,-150.0,0.00016501,2]
[388395855,1759153833428,-150.0,0.00016562,2]
[388395857,1759153833438,-150.0,0.00016647,2]
[388395859,1759153833448,-150.0,0.00016647,2]
[388395861,1759153833458,-150.0,0.00016647,2]
[388395862,1759153833468,-150.0,0.00016647,2]
[388395863,1759153833478,-150.0,0.00016703,2]
[388395864,1759153833488,-150.0,0.00016703,2]
[388395865,1759153833498,-171.25,0.00016712,2]
[388395866,1759153833508,-420.0,0.00016726,2]
[388395867,1759153833518,-530.91077166,0.0001673,2]
[388395868,1759153833528,-2000.0,0.00016732,2]
[388395869,1759153833538,-150.0,0.00016744,2]
[388395870,1759153833548,-530.91077163,0.00016749,2]
[388395871,1759153833560,-530.91077163,0.00016768,2]
[388395872,1759153833569,-530.91077163,0.00016787,2]
[388395873,1759153833579,-578.7122,0.000168,2]
[388395874,1759153833590,-530.91077163,0.00016806,2]
[388395875,1759153833600,-1680.0,0.0001681,2]
[388395876,1759153833611,-38607.59327835,0.00016816,2]
[388395877,1759153833621,-150.0,0.00016816,2]
[388395878,1759153833631,-150.0,0.0001682,2]
[388395879,1759153833641,-150.0,0.0001682,2]
[388395880,1759153833655,-27931.08182032,0.0001682,2]
[388395881,1759153833669,-449.6702639,0.0001682,2]
[388395882,1759153833701,-501.64312512,0.0001682,2]
[388395883,1759153833714,-685.28087303,0.0001682,2]
[388395884,1759153833725,-3.31692697,0.00016824,2]
[388395885,1759153833738,-527.59384466,0.00016824,2]
[388395886,1759153833748,-39.40121516,0.0001683,2]
[388395887,1759153833769,-386.28854406,0.0001683,2]
[388395888,1759153833782,-311.27151046,0.0001683,2]
[388395889,1759153833799,-2708.71776944,0.0001683,2]
[388395890,1759153833813,-1014.68785954,0.0001683,2]
[388395891,1759153833826,-734.81029887,0.0001683,2]
[388395892,1759153833840,-255.97169818,0.0001683,2]
[388395893,1759153833854,-3792.97568856,0.0001683,2]
[388395894,1759153833865,-530.91077163,0.00016843,2]
[388395895,1759153833878,-530.91077163,0.00016862,2]
[388395896,1759153833888,-530.91077163,0.00016881,2]
[388395897,1759153833898,-163.56,0.0001689,2]
[388395898,1759153833908,-418.30913244,0.00016899,2]
[388395899,1759153833918,-5298.91686411,0.000169,2]
[388395900,1759153833930,-1269.3910725,0.000169,2]
[388395901,1759153833943,-396.83630553,0.000169,2]
[388395902,1759153833955,-1124.87406304,0.000169,2]
[388395903,1759153833968,-1477.57408873,0.000169,2]
[388395904,1759153833986,-2657.24850271,0.000169,2]
[388395905,1759153834003,-1297.94830182,0.000169,2]
[388395906,1759153834017,-669.52782645,0.000169,2]
[388395907,1759153834043,-2255.4,0.000169,2]
[388395908,1759153834058,-500.20959922,0.000169,2]
[388395912,1759153838264,-500.0,0.0001682,2]
[388395913,1759153838275,-351.25,0.0001682,2]
[388395914,1759153838353,-148.75,0.0001682,2]
[388395915,1759153838365,-62371.45893717,0.000169,2]
[388395916,1759153838376,-1473.07579739,0.000169,2]
[388395917,1759153838387,-165.80758188,0.000169,2]
[388395918,1759153838398,-530.91077163,0.000169,2]
[388395919,1759153838410,-226.55520494,0.000169,2]
[388395920,1759153838421,-167.16575217,0.000169,2]
[388395921,1759153838432,-500.0,0.000169,2]
[388395922,1759153838443,-500.0,0.000169,2]
[388395923,1759153838455,-150.0,0.000169,2]
[388395924,1759153838472,-500.0,0.000169,2]
[388395925,1759153838482,-500.0,0.000169,2]
[388395926,1759153838493,-150.0,0.000169,2]
[388395927,1759153838503,-500.0,0.000169,2]
[388395928,1759153838514,-150.0,0.000169,2]
[388395929,1759153838525,-613.0,0.000169,2]
[388395930,1759153838536,-171.57,0.00016915,2]
[388395932,1759153838547,-350.53,0.00016928,2]
[388395933,1759153838563,-298.64,0.00016953,2]
[388395934,1759153838574,-790.61684268,0.00016959,2]
[388395935,1759153838585,-500.0,0.00016973,2]
[388395936,1759153838596,-388.63558128,0.00016973,2]
[388395939,1759153838612,-500.0,0.00016973,2]
[388395941,1759153838623,-500.0,0.00016973,2]
[388395943,1759153838634,-500.0,0.00016973,2]
[388395945,1759153838644,-500.0,0.00016973,2]
[388395947,1759153838655,-291.0,0.0001698,2]
[388395949,1759153838666,-500.0,0.00016983,2]
[388395951,1759153838676,-150.0,0.00016986,2]
[388395953,1759153838686,-232.18428218,0.00016986,2]
[388395955,1759153838696,-150.0,0.00016986,2]
[388395957,1759153838707,-174.98136805,0.00016986,2]
[388395959,1759153838718,-154.8558059,0.00016986,2]
[388395962,1759153838728,-255.47545688,0.00016986,2]
[388395964,1759153838739,-271.37322478,0.00016986,2]
[388395966,1759153838749,-152.02165323,0.00016986,2]
[388395968,1759153838759,-162.49874224,0.00016986,2]
[388395970,1759153838770,-224.84664909,0.00016986,2]
[388395972,1759153838779,-153.30096597,0.00016986,2]
[388395974,1759153838790,-150.0,0.00016986,2]
[388395976,1759153838800,-150.0,0.00016986,2]
[388395978,1759153838815,-2646.0,0.00016989,2]
[388395980,1759153838826,-500.0,0.00016989,2]
[388395982,1759153838836,-500.0,0.00016989,2]
[388395984,1759153838846,-150.0,0.00016989,2]
[388395986,1759153838856,-639.0,0.00016989,2]
[388395989,1759153838871,-500.0,0.00016989,2]
[388395991,1759153838882,-500.0,0.00016989,2]
[388395993,1759153838894,-150.0,0.00016989,2]
[388395995,1759153838904,-150.0,0.00016989,2]
[388395997,1759153838915,-500.0,0.00016989,2]
[388395999,1759153838926,-150.0,0.00016989,2]
[388396001,1759153838936,-200.61963341,0.00016989,2]
[388396003,1759153838947,-150.0,0.00016989,2]
[388396005,1759153838957,-150.0,0.00016989,2]
[388396008,1759153838968,-300.0,0.0001699,2]
[388396010,1759153838979,-300.0,0.00016999,2]
[388396012,1759153838991,-158.758,0.00016999,2]
[388396014,1759153839001,-3070.2260891,0.00016999,2]
[388396016,1759153839013,-10000.0,0.00016999,2]
[388396018,1759153839024,-300.0,0.00016999,2]
[388396020,1759153839035,-500.0,0.00016999,2]
[388396022,1759153839046,-500.0,0.00016999,2]
[388396024,1759153839061,-203.47499061,0.00016999,2]
[388396026,1759153839074,-300.0,0.00016999,2]
[388396029,1759153839085,-445474.58070762,0.00017,2]
[388396031,1759153839096,-2302735.9299298,0.00017,2]
[388396033,1759153839110,-516.76666125,0.00017,2]
[388396039,1759153839162,-11360.8422178,0.00017,2]
[388396042,1759153839176,-1418.75,0.00017,2]
[388396044,1759153839188,-1377.8190043,0.00017,2]
[388396168,1759153840340,-445.01640446,0.0001682,2]
[388396390,1759153842357,-500.0,0.00015907,2]
[388396392,1759153842367,-500.0,0.00015907,2]
[388396394,1759153842377,-500.0,0.00015907,2]
[388396396,1759153842387,-500.0,0.00015907,2]
[388396398,1759153842396,-250.0,0.00015907,2]
[388396400,1759153842406,-2089.98359554,0.0001682,2]
[388396402,1759153842416,-5005.19,0.000169,2]
[388396404,1759153842426,-1987.00422792,0.00017,2]
[388396406,1759153842438,-4701.52957176,0.00017,2]
[388396408,1759153842450,-5879.3992249,0.00017,2]
[388396429,1759153842463,-495.49503,0.00017,2]
[388396432,1759153842914,-2371.01699612,0.00017,2]
[388396436,1759153842949,-624.95830002,0.00017,2]
[388396438,1759153842961,-766.89488344,0.00017,2]
[388396440,1759153842973,-1135.0,0.00017,2]
[388396451,1759153843383,-254.39513532,0.00017,2]
[388396452,1759153843395,-9377.69,0.00017,2]
[388396453,1759153843406,-1911.67782324,0.00017,2]
[388396454,1759153843463,-308.31073484,0.00017,2]
[388396455,1759153843476,-26580.80735647,0.00017,2]
[388396456,1759153843492,-2837.5,0.00017,2]
[388396457,1759153843560,-1079.41496,0.00017,2]
[388396458,1759153843574,-1380.52,0.00017,2]
[388396459,1759153843587,-1509.0,0.00017,2]
[388396460,1759153843599,-1060.81323626,0.00017,2]
[388396461,1759153843612,-1205.65464631,0.00017,2]
[388396462,1759153843624,-811.51670623,0.00017,2]
[388396463,1759153843648,-247049.88987669,0.00017,2]
[388396464,1759153843661,-108097.51945693,0.00017,2]
[388396465,1759153843673,-479.2,0.00017,2]
[388396466,1759153843685,-3466.24,0.00017,2]
[388396479,1759153846418,-148373.9118265,0.00017,2]
[388396480,1759153846431,-252.42243081,0.00017,2]
[388396481,1759153846444,-1442.88030212,0.00017,2]
[388396482,1759153846458,-3119.44999998,0.00017,2]
[388396483,1759153846471,-5683.678,0.00017,2]
[388396484,1759153846505,-1000.20049001,0.00017,2]
[388396485,1759153846518,-7237.75,0.00017,2]
[388396486,1759153846593,-3303.50381037,0.00017,2]
[388396487,1759153846607,-27371.74074935,0.00017,2]
[388396612,1759154542844,1000.0,0.00014321,2]
[388396613,1759154543092,1000.0,0.00014713,2]
[388396702,1759154637108,-500.0,0.00015,5]
[388396709,1759154644198,500.0,0.000145,5]
[388396734,1759154730689,-150.0,0.00015288,2]
[388396735,1759154733378,-150.0,0.00015288,2]
[388396737,1759154735899,-150.0,0.00015288,2]
[388396738,1759154739511,-150.0,0.00015288,2]
[388396739,1759154741253,-150.0,0.00015288,2]
[388396740,1759154741277,-105.47545688,0.00015288,2]
[388396742,1759154776634,-220.129831,0.00015211,2]
[388396743,1759154776662,-44.52454312,0.00015288,2]
[388396744,1759154776688,-255.47545688,0.00015288,2]
[388396745,1759154776714,-254.11289035,0.00015288,2]
[388396746,1759154776740,-224.84664909,0.00015288,2]
[388396747,1759154776768,-150.41000677,0.00015288,2]
[388396748,1759154777207,-150.0,0.00015288,2]
[388396749,1759154777271,-150.0,0.00015288,2]
[388396750,1759154777297,-150.0,0.00015288,2]
[388396751,1759154804951,564.63,7.718e-05,2]
[388396752,1759154805213,564.63,8.124e-05,2]
[388396753,1759154805445,564.63,8.53e-05,2]
[388396754,1759154805713,564.63,8.936e-05,2]
[388396755,1759154805947,564.63,9.342e-05,2]
[388396756,1759154806177,564.63,9.749e-05,2]
[388396757,1759154806403,564.63,0.00010155,2]
[388396758,1759154806645,564.63,0.00010561,2]
[388396759,1759154806863,564.63,0.00010967,2]
[388396760,1759154807098,564.63,0.00011373,2]
[388396761,1759154807942,564.63,0.0001178,2]
[388396762,1759154808024,118.940169,0.00012186,2]
[388396763,1759154808052,445.689831,0.00012186,2]
[388396764,1759154808104,60.90173113,0.00012592,2]
[388396765,1759154808135,503.72826887,0.00012592,2]
[388396766,1759154808268,564.63,0.00012998,2]
[388396767,1759154808485,564.63,0.00013404,2]
[388396768,1759154808720,564.63,0.0001381,2]
[388396769,1759154809022,564.63,0.00014217,2]
[388396770,1759154809330,564.63,0.00014623,2]
[388396814,1759155031493,-564.63,0.00015029,2]
[388396815,1759155031504,-1098.19451152,0.0001541,2]
[388396816,1759155031517,-1108.40548848,0.0001541,2]
[388396817,1759155031526,-564.63,0.00015435,2]
[388396818,1759155031537,-1068.86,0.00015501,2]
[388396819,1759155031548,-1200.0,0.00015505,2]
[388396820,1759155031558,-11498.2,0.00015506,2]
[388396821,1759155031567,-150.0,0.0001553,2]